[Event "67th Mexican-ch Open 2022"]
[Site "Chihuahua"]
[Date "2022.04.15"]
[Round "5.26"]
[White "Salas Estrada, Ana Valeria"]
[Black "Guillen Cristobal, Sandra N"]
[Result "0-1"]
[ECO "A05"]
[WhiteElo "1783"]
[BlackElo "1933"]
[Annotator "TA"]
[PlyCount "80"]
[EventDate "2022.04.12"]
[EventType "swiss"]
[EventCountry "MEX"]
[SourceTitle "playchess.com"]
[Source "ChessBase"]
[SourceQuality "1"]
[TimeControl "5400+30"]

{[%evp 15,79,0,8,-12,6,-18,-8,-26,-15,-24,-16,-24,-3,-20,-19,-25,-16,-39,-47,-45,-43,-44,-36,-140,-133,-123,-124,-138,-144,-176,-200,-470,-108,-90,-91,-98,-84,-125,-47,-32,-8,-2,0,-7,216,218,612,590,570,365,355,187,190,0,0,0,0,0,0,-2,0,-5,-7,-5,-2,-29999]} 1. e4 {[%emt 0:00:06]} c5 {[%emt 0:00:28]} 2. Nf3 {[%emt 0:00:19]} Nc6 {[%emt 0:00:10]} 3. d3 {[%emt 0:00:29]} g6 {[%emt 0:00:12]} 4. g3 {[%emt 0:00:11]} Bg7 {[%emt 0:00:07]} 5. Bg2 {[%emt 0:00:05]} d6 {[%emt 0:00:16]} 6. O-O {[%emt 0:00:38]} Nf6 {[%emt 0:00:08]} 7. Re1 {[%emt 0:02:07] is recently more successful than 7.c3.} O-O {[%emt 0:00:08]} 8. Nbd2 {[%emt 0:00:06][%cal Bb1d2,Bd2f1,Bf1h2,Bh2f3][%mdl 32]} Rb8 {[%emt 0:00:59]} 9. Nf1 {[%emt 0:01:17] A05: Réti Opening: 1 Nf3 Nf6.} Nd4 {[%emt 0:02:14]} 10. h3 {[%emt 0:03:34]} b5 {[%emt 0:02:00] [#]} 11. N1h2 $146 {[%emt 0:05:17] The position is equal.} ({Predecessor:} 11. Nxd4 cxd4 12. f4 Bb7 13. g4 Qc7 14. Ng3 Rfc8 15. Re2 a5 16. Rf2 Nd7 17. g5 {1-0 (49) Heydarov,A-Asadov,E Baku 2004}) 11... Nxf3+ {[%emt 0:02:44]} 12. Nxf3 {[%emt 0:01:47]} Bb7 {[%emt 0:00:05]} 13. Bg5 {[%emt 0:04:59]} h6 {[%emt 0:00:57]} 14. Bd2 {[%emt 0:00:14]} a5 {[%emt 0:02:05]} 15. Nh2 {[%emt 0:09:42]} Kh7 {[%emt 0:08:59]} 16. Ng4 {[%emt 0:06:00]} Nxg4 {[%emt 0:02:04]} 17. hxg4 {[%emt 0:00:56]} b4 {[%emt 0:00:23]} 18. Rb1 {[%emt 0:01:17]} Qd7 {[%emt 0:00:14]} 19. Bh3 {[%emt 0:10:55]} (19. c4 $15) 19... Qa4 $17 {[%emt 0:00:53]} 20. b3 {[%emt 0:13:32]} Qxa2 {[%emt 0:01:19]} 21. Re2 {[%emt 0:03:46]} a4 {[%emt 0:00:56] &Nero is more active.} 22. c3 {[%emt 0:18:13][%cal Od2h6]} axb3 {[%emt 0:01:13]} 23. Bxh6 $2 {[%emt 0:01:46] [#]} (23. Qxb3 Qxb3 24. Rxb3) 23... Qa5 $2 {[%emt 0:02:12]} ({Worse is} 23... Kxh6 24. Rxa2 bxa2 25. Qd2+ Kh7 26. Qxa2 $19) (23... Bxh6 $1 $19 24. Rxa2 bxa2) 24. Bxg7 {[%emt 0:00:30]} Kxg7 {[%emt 0:00:05]} 25. cxb4 {[%emt 0:00:13]} cxb4 {[%emt 0:01:21]} 26. Qxb3 {[%emt 0:00:26] [#]} Bc6 {[%emt 0:00:39]} (26... Bc8 $1 $17 {aiming for ...Rh8.} 27. Qb2+ e5) 27. Rc2 $15 {[%emt 0:01:53]} Ba4 {[%emt 0:02:04]} 28. Qb2+ {[%emt 0:00:33]} f6 {[%emt 0:00:09]} 29. Ra1 {[%emt 0:04:23][%cal Og4g5] g5! is the strong threat.} Qb5 {[%emt 0:04:16]} (29... b3 $11 {and Black stays safe.} 30. Rc4 Rb4) 30. Rc7 $18 {[%emt 0:02:10]} Qe8 {[%emt 0:01:11]} (30... g5 31. Ra7 (31. Rxe7+ Rf7 $14) 31... b3 32. R1xa4 Qe5) 31. g5 $1 {[%emt 0:01:07] And now gxf6+ would win.} Qd8 {[%emt 0:09:18]} 32. gxf6+ {[%emt 0:00:28]} Rxf6 {[%emt 0:00:29] [#]} 33. Ra7 {[%emt 0:04:52]} (33. e5 $142 $1 {[%mdl 512]} dxe5 34. Qxe5) 33... Bc6 {[%emt 0:10:38]} 34. e5 $2 {[%emt 0:00:18]} ({White should try} 34. Be6 $18) 34... dxe5 $11 {[%emt 0:01:00]} 35. Qxe5 {[%emt 0:00:03]} Rb7 {[%emt 0:00:33]} 36. Rxb7 {[%emt 0:00:50]} Bxb7 {[%emt 0:00:16]} 37. Ra7 {[%emt 0:03:25]} Qb6 $40 {[%emt 0:00:19][%csl Gf6][%cal Rb6f2][%mdl 128] Black is up to no good.} 38. Qxe7+ {[%emt 0:00:19]} Rf7 {[%emt 0:00:10][%csl Gf7][%cal Rb6f2] Dancing on a razor blade.} 39. Qe5+ {[%emt 0:00:09]} Kh7 {[%emt 0:00:11][%csl Gf7][%cal Rb6f2]} 40. Ra1 $2 {[%emt 0:00:51][%mdl 8192]} (40. Ra2 $11) 40... Qxf2# {[%emt 0:00:19] Weighted Error Value: White=0.57/Black=0.52} 0-1

[Event "67th Mexican-ch Open 2022"]
[Site "Chihuahua"]
[Date "2022.04.15"]
[Round "5.27"]
[White "Ramirez Toledo, Ayleen Maribel"]
[Black "Padilla Garcia, Cecilia Xasive"]
[Result "1-0"]
[ECO "D02"]
[WhiteElo "1810"]
[BlackElo "1834"]
[Annotator "NA RC"]
[PlyCount "95"]
[EventDate "2022.04.12"]
[EventType "swiss"]
[EventCountry "MEX"]
[SourceTitle "playchess.com"]
[Source "ChessBase"]
[SourceQuality "1"]
[TimeControl "5400+30"]

1. Nf3 {[%emt 0:00:03]} c5 {[%emt 0:00:06]} 2. g3 {[%emt 0:00:19]} Nc6 {[%emt 0:00:08]} 3. d4 {[%emt 0:00:42]} cxd4 {[%emt 0:00:50]} 4. Nxd4 {[%emt 0:00:06]} d5 {[%emt 0:02:07]} 5. Bg2 {[%emt 0:00:17]} Nf6 {[%emt 0:05:55]} 6. O-O {[%emt 0:05:56]} g6 {[%emt 0:01:04]} 7. c4 {[%emt 0:00:52]} Nxd4 {[%emt 0:10:37]} 8. Qxd4 {[%emt 0:00:10]} dxc4 {[%emt 0:23:36]} 9. Qxd8+ {[%emt 0:08:50]} Kxd8 {[%emt 0:00:02]} 10. Na3 {[%emt 0:00:12]} Nd7 {[%emt 0:13:50]} 11. Nxc4 {[%emt 0:02:35]} Bg7 {[%emt 0:00:47]} 12. Bd2 {[%emt 0:03:02]} Rb8 {[%emt 0:02:55]} 13. Rad1 {[%emt 0:05:13]} Ke8 {[%emt 0:01:35]} 14. Bb4 {[%emt 0:13:12]} Bf6 {[%emt 0:17:22]} 15. f4 {[%emt 0:06:03]} Nb6 {[%emt 0:06:12]} 16. Nxb6 {[%emt 0:15:35]} axb6 {[%emt 0:00:02]} 17. Rd2 {[%emt 0:01:05]} Bd7 {[%emt 0:06:25]} 18. Rfd1 {[%emt 0:05:31]} Bc6 {[%emt 0:01:03]} 19. e4 {[%emt 0:00:47]} e6 {[%emt 0:01:33]} 20. e5 {[%emt 0:01:39]} Be7 {[%emt 0:02:12]} 21. Bxe7 {[%emt 0:02:24]} Kxe7 {[%emt 0:00:09]} 22. Bxc6 {[%emt 0:00:20]} bxc6 {[%emt 0:00:01]} 23. Rd7+ {[%emt 0:00:11]} Kf8 {[%emt 0:00:28]} 24. Rc7 {[%emt 0:00:35]} Kg7 {[%emt 0:01:42]} 25. Rxc6 {[%emt 0:02:54]} Rhc8 {[%emt 0:00:21]} 26. Rdd6 {[%emt 0:00:45]} b5 {[%emt 0:01:01]} 27. Kf2 {[%emt 0:03:01]} b4 {[%emt 0:01:09]} 28. Ke3 {[%emt 0:02:33]} Rxc6 {[%emt 0:00:12]} 29. Rxc6 {[%emt 0:00:01]} Ra8 {[%emt 0:00:04]} 30. Rb6 {[%emt 0:00:21]} Rxa2 {[%emt 0:00:05]} 31. Rxb4 {[%emt 0:20:46]} Ra1 {[%emt 0:00:13]} 32. Rc4 {[%emt 0:00:00]} h6 {[%emt 0:00:33]} 33. Kd4 {[%emt 0:00:00]} g5 {[%emt 0:00:45]} 34. b4 {[%emt 0:00:00]} Ra2 {[%emt 0:00:42]} 35. b5 {[%emt 0:00:00]} Rxh2 {[%emt 0:00:33]} 36. b6 {[%emt 0:00:00]} gxf4 {[%emt 0:00:55]} 37. gxf4 {[%emt 0:00:00]} Rb2 {[%emt 0:00:11]} 38. Kc5 {[%emt 0:00:00]} Kg6 {[%emt 0:01:20]} 39. Rb4 {[%emt 0:00:00]} Rc2+ {[%emt 0:00:05]} 40. Kd6 {[%emt 0:00:00]} Rc8 {[%emt 0:00:51]} 41. b7 {[%emt 0:00:00]} Rd8+ {[%emt 0:00:42]} 42. Kc7 {[%emt 0:00:00]} Re8 {[%emt 0:00:09]} 43. b8=Q {[%emt 0:00:00]} Rxb8 {[%emt 0:00:03]} 44. Kxb8 {[%emt 0:00:00]} Kf5 {[%emt 0:00:04]} 45. Kc7 {[%emt 0:00:00]} h5 {[%emt 0:00:50]} 46. Kd6 {[%emt 0:00:00]} f6 {[%emt 0:00:17]} 47. exf6 {[%emt 0:00:00]} Kxf6 {[%emt 0:00:03]} 48. Rb8 {[%emt 0:00:00]} 1-0

[Event "67th Mexican-ch Open 2022"]
[Site "Chihuahua"]
[Date "2022.04.16"]
[Round "6.1"]
[White "Salinas Herrera, Pablo"]
[Black "Cori, Jorge"]
[Result "1/2-1/2"]
[ECO "B13"]
[WhiteElo "2517"]
[BlackElo "2650"]
[Annotator "TA"]
[PlyCount "97"]
[EventDate "2022.04.12"]
[EventType "swiss"]
[EventCountry "MEX"]
[SourceTitle "playchess.com"]
[Source "ChessBase"]
[SourceQuality "1"]
[TimeControl "5400+30"]

{[%evp 19,97,33,43,32,39,33,40,36,47,48,27,33,33,33,33,32,16,16,22,20,26,26,39,15,21,0,0,0,0,0,0,-2,0,-25,-15,-12,-20,-34,-33,-35,-23,-27,-4,-37,-28,-38,-26,-42,-49,-37,0,0,0,0,0,0,0,0,0,0,0,0,0,-87,-87,-88,0,0,0,0,0,0,0,0,0,0,0,0,0,0]} 1. d4 {[%emt 0:00:03]} Nf6 {[%emt 0:03:36]} 2. Nf3 {[%emt 0:00:27]} d5 {[%emt 0:00:34]} 3. Bf4 {[%emt 0:00:23]} c5 {[%emt 0:03:02]} 4. e3 {[%emt 0:00:08]} Nc6 {[%emt 0:00:10]} 5. Nbd2 {[%emt 0:00:08]} cxd4 {[%emt 0:05:58]} 6. exd4 {[%emt 0:00:07]} g6 {[%emt 0:00:05]} 7. c3 {[%emt 0:09:58]} Bg7 {[%emt 0:00:16]} 8. Bd3 {[%emt 0:00:07]} Nh5 {[%emt 0:02:24]} 9. Be3 {[%emt 0:02:20]} O-O {[%emt 0:07:04]} 10. O-O {[%emt 0:02:13]} Qd6 {[%emt 0:00:11]} 11. Re1 {[%emt 0:01:57] B13: Caro-Kann: Exchange Variation and Panov-Botvinnik Attack.} Bd7 {[%emt 0:02:05] [#]} 12. a4 $146 {[%emt 0:07:56][%cal Ba2a4,Ba4a5][%mdl 32]} ({Predecessor:} 12. Bf1 Rae8 13. a3 f5 14. Nb3 f4 15. Bd2 Bg4 16. Be2 Nf6 17. h3 Bc8 18. c4 e6 {½-½ (59) Efanov,N (2411)-Potapov,A (2316) Kharkov 2009}) 12... Rfe8 {[%emt 0:01:31]} 13. Bf1 {[%emt 0:09:27] White is slightly better.} Rad8 {[%emt 0:04:11]} 14. a5 {[%emt 0:04:23]} Qc7 {[%emt 0:02:16]} 15. Qb3 {[%emt 0:09:03]} e6 {[%emt 0:11:54]} 16. Qa2 {[%emt 0:00:38]} a6 {[%emt 0:04:43]} 17. Nb3 {[%emt 0:03:03]} Na7 {[%emt 0:00:15]} 18. g3 {[%emt 0:02:46]} Bb5 {[%emt 0:01:28]} 19. Bg2 {[%emt 0:00:12]} Bf8 {[%emt 0:08:48]} 20. Nc5 {[%emt 0:01:32]} Nc6 {[%emt 0:04:21]} 21. b4 {[%emt 0:00:57]} f6 {[%emt 0:00:47]} 22. Bh3 {[%emt 0:00:42]} Qf7 {[%emt 0:03:40]} 23. Qd2 {[%emt 0:07:34]} Ng7 {[%emt 0:01:27]} 24. Bh6 {[%emt 0:01:42]} Bxc5 {[%emt 0:00:45]} 25. bxc5 {[%emt 0:08:28]} Nf5 {[%emt 0:00:07]} 26. Be3 {[%emt 0:00:14]} g5 {[%emt 0:01:45]} 27. Qc2 {[%emt 0:03:41]} Qg6 {[%emt 0:03:10] aiming for ...g4.} 28. Nd2 {[%emt 0:00:50]} Kf7 {[%emt 0:01:44]} 29. Qb3 {[%emt 0:00:44]} Re7 {[%emt 0:00:30]} (29... Nxe3 30. fxe3 Na7 31. Bg2 $14) 30. Bg2 {[%emt 0:00:31]} h5 {[%emt 0:00:31]} (30... Nxe3 31. fxe3 Qd3 32. Qb2 $14) 31. Qa2 {[%emt 0:01:06]} Kg7 {[%emt 0:00:19]} (31... Nxe3 32. fxe3 h4 33. e4 $11) 32. Rad1 {[%emt 0:00:28]} g4 {[%emt 0:07:40]} 33. c4 {[%emt 0:00:46]} dxc4 {[%emt 0:00:04]} 34. Nxc4 {[%emt 0:00:27]} Nfxd4 {[%emt 0:02:53]} ({Resist} 34... Ncxd4 35. Bxd4 Rxd4 36. Nd6 Rxd1 37. Rxd1 $14) 35. Bxd4 {[%emt 0:05:37]} Rxd4 {[%emt 0:00:59]} 36. Nd6 {[%emt 0:00:08]} Rxd1 {[%emt 0:01:27]} 37. Rxd1 {[%emt 0:02:18]} Ne5 {[%emt 0:00:15]} 38. Nxb5 {[%emt 0:01:03]} ({Not} 38. Bxb7 $2 Rxb7 $1 {[%mdl 512]} 39. Nxb7 Qe4 $19) 38... axb5 {[%emt 0:00:02]} 39. Qb3 {[%emt 0:00:07]} h4 {[%emt 0:09:42][%cal Bh5h4,Bh4h3][%mdl 32]} 40. Qxb5 {[%emt 0:00:12]} Qc2 {[%emt 0:00:54]} 41. Rf1 {[%emt 0:02:06] [#]} (41. Re1 $1 $11 {remains equal.} Nd3 42. Rf1 hxg3 43. hxg3 Nxc5 44. Qb4) 41... h3 $1 $17 {[%emt 0:04:36]} 42. Bxb7 {[%emt 0:00:07] [#] Threatens to win with a6.} Rxb7 $1 {[%emt 0:00:24]} 43. Qxb7+ {[%emt 0:00:05][%mdl 4096] Endgame KQR-KQN. The position is equal.} Kh6 {[%emt 0:00:04] ( -> ...Qe2)} 44. Qe7 {[%emt 0:13:09]} Qe4 {[%emt 0:02:35][%csl Gh3][%cal Re4g2]} 45. Qxf6+ {[%emt 0:00:04]} Ng6 {[%emt 0:00:03][%csl Gh3][%cal Re4g2]} 46. f3 {[%emt 0:00:24]} Qe2 {[%emt 0:00:06][%csl Gh3][%cal Re2g2]} 47. Rf2 {[%emt 0:00:06] Against Qg2+} Qe1+ {[%emt 0:00:24]} 48. Rf1 {[%emt 0:00:04]} Qe2 {[%emt 0:00:04][%csl Gh3][%cal Re2g2]} 49. Rf2 {[%emt 0:00:05] Inhibits Qg2+.  Weighted Error Value: White=0.07 (flawless) /Black=0.06 (flawless)} 1/2-1/2

[Event "67th Mexican-ch Open 2022"]
[Site "Chihuahua"]
[Date "2022.04.16"]
[Round "6.2"]
[White "Gonzalez Zamora, Juan Carlos"]
[Black "Mareco, Sandro"]
[Result "0-1"]
[ECO "D30"]
[WhiteElo "2544"]
[BlackElo "2643"]
[Annotator "TA"]
[PlyCount "136"]
[EventDate "2022.04.12"]
[EventType "swiss"]
[EventCountry "MEX"]
[SourceTitle "playchess.com"]
[Source "ChessBase"]
[SourceQuality "1"]
[TimeControl "5400+30"]

{[%evp 9,136,13,18,8,10,13,25,27,27,24,38,23,31,14,14,14,10,10,7,22,8,8,14,12,31,31,22,0,14,0,0,0,0,0,0,0,0,-5,-1,0,-2,-14,-12,-16,0,-227,-227,-227,-227,-227,-227,-227,-227,-227,-227,-227,-214,-227,-227,-227,-227,-227,-227,-318,-318,-318,-311,-315,-318,-322,-225,-318,-318,-316,-315,-315,-304,-805,-825,-767,-729,-716,-689,-676,-617,-12833,-893,-779,-746,-1985,-1887,-5960,-5273,-12840,-12840,-12841,-12840,-12841,-12841,-12841,-12842,-12844,-12840,-12841,-12841,-12843,-12841,-12841,-12841,-12841,-12842,-12842,-12843,-12843,-12843,-12844,-12843,-12844,-12844,-12845,-12845,-12845,-12845,-12845,-12846,-12846,-12847,-12847,-12847]} 1. Nf3 {[%emt 0:00:24]} d5 {[%emt 0:00:04]} 2. d4 {[%emt 0:00:31]} Nf6 {[%emt 0:00:16]} 3. c4 {[%emt 0:00:26]} e6 {[%emt 0:00:17]} 4. e3 {[%emt 0:01:57]} a6 {[%emt 0:00:19]} 5. Nbd2 {[%emt 0:00:39]} b6 {[%emt 0:03:38]} 6. b3 {[%emt 0:00:48] D30: Queen's Gambit Declined: Systems without Nc3.} Bb7 {[%emt 0:00:06]} 7. Bb2 {[%emt 0:00:04]} Bd6 {[%emt 0:02:23]} 8. Bd3 {[%emt 0:00:24] White has an edge.} Nbd7 {[%emt 0:01:45]} 9. O-O {[%emt 0:00:45]} c5 $5 {[%emt 0:00:51][%mdl 4] Exploring less charted territory.} 10. cxd5 {[%emt 0:06:34]} exd5 {[%emt 0:00:13]} 11. Re1 {[%emt 0:01:18]} O-O {[%emt 0:31:07] [#]} 12. e4 $146 {[%emt 0:00:30]} (12. Ne5 {seems wilder.} b5 13. Nxd7 Nxd7 14. dxc5 Nxc5 15. Nf3) ({Predecessor:} 12. dxc5 Nxc5 13. Bf1 Re8 14. Rc1 Rc8 15. Nd4 Qd7 16. Rc2 Ng4 17. g3 Ne5 18. N2f3 f6 19. Be2 Ne4 20. Rxc8 Bxc8 21. Nc2 {½-½ (21) Gustafsson,J (2615)-Horvath,C (2563) Austria 2006}) 12... dxe4 {[%emt 0:00:30]} (12... Nxe4 {with more complications.} 13. Nxe4 dxe4 14. Bxe4 Bxe4 15. Rxe4 Nf6) 13. Nxe4 {[%emt 0:00:30]} Nxe4 {[%emt 0:00:30]} 14. Bxe4 {[%emt 0:00:30]} Bxe4 {[%emt 0:00:30]} 15. Rxe4 {[%emt 0:00:30]} Nf6 {[%emt 0:00:30]} 16. Re2 {[%emt 0:00:30]} Rc8 {[%emt 0:00:30]} 17. dxc5 {[%emt 0:00:30]} Bxc5 {[%emt 0:00:30]} 18. Qf1 {[%emt 0:00:30]} b5 {[%emt 0:00:30]} 19. Rd1 {[%emt 0:00:30]} Qb6 {[%emt 0:00:30]} 20. a3 {[%emt 0:00:30]} Rfd8 {[%emt 0:00:30]} 21. b4 {[%emt 0:00:30]} Bf8 {[%emt 0:00:30]} 22. Rxd8 {[%emt 0:00:30]} Rxd8 {[%emt 0:00:30]} 23. Rd2 {[%emt 0:00:30]} Ne4 {[%emt 0:00:30]} 24. Rxd8 {[%emt 0:00:30]} Qxd8 {[%emt 0:00:30]} 25. Qe2 {[%emt 0:00:30]} Qd5 {[%emt 0:00:30]} 26. g3 {[%emt 0:00:30]} h6 {[%emt 0:00:30]} 27. Bd4 $2 {[%emt 1:22:40] [#] Black converts the advantage convincingly.} (27. Qe3 $11) 27... Ng5 $1 $19 28. Nxg5 {[%emt 0:00:00] aiming for Nf3.} Qxd4 {[%emt 0:02:20]} 29. Ne6 {[%emt 0:00:00]} fxe6 {[%emt 0:03:53]} 30. Qxe6+ {[%emt 0:00:00]} Kh8 {[%emt 0:00:05] Strongly threatening ...Qa1+.} 31. Qxa6 {[%emt 0:00:00]} Qd1+ {[%emt 0:01:11]} 32. Kg2 {[%emt 0:00:00]} Qd5+ {[%emt 0:00:03]} 33. Kg1 {[%emt 0:00:00]} Be7 {[%emt 0:05:14]} 34. Qc8+ {[%emt 0:00:00]} Bd8 {[%emt 0:00:05]} 35. h4 {[%emt 0:00:00]} Kg8 {[%emt 0:00:31]} 36. h5 {[%emt 0:00:00]} (36. Qc2 {is a better defense.}) 36... Kf7 {[%emt 0:00:54]} 37. Qg4 {[%emt 0:00:00]} Bf6 {[%emt 0:00:21]} 38. Qe2 {[%emt 0:00:00]} Kf8 {[%emt 0:03:36]} 39. Kh2 {[%emt 0:00:00]} Bd4 {[%emt 0:00:29]} 40. Qg4 {[%emt 0:00:00]} (40. Kg1 $142) 40... Ke7 {[%emt 0:01:30]} ({And not} 40... Bxf2 41. Qf4+ Qf7 42. Qb8+ Ke7 43. Qb7+ Ke6 44. Qxb5 $19) 41. Qe2+ {[%emt 0:00:00]} Qe5 {[%emt 0:01:56]} 42. Qf3 {[%emt 0:00:00]} Kd6 {[%emt 0:00:44]} 43. Kh3 $2 {[%emt 0:00:00]} (43. Kg1) 43... Qd5 {[%emt 0:06:59] Black is clearly winning.} 44. Qf4+ {[%emt 0:00:00]} Kd7 {[%emt 0:00:13]} 45. Qd2 {[%emt 0:02:27]} Qxh5+ {[%emt 0:00:22]} 46. Kg2 {[%emt 0:00:03]} Qd5+ {[%emt 0:00:11]} 47. f3 {[%emt 0:00:08]} Ke6 {[%emt 0:04:40]} (47... g5 $142 48. g4 Qc4) 48. Qc2 {[%emt 0:00:42]} Qc4 {[%emt 0:00:24]} 49. Qe4+ {[%emt 0:02:53]} Be5 {[%emt 0:01:26] [#] Hoping for ...Qxe4.} 50. Qg6+ {[%emt 0:01:24]} Ke7 {[%emt 0:00:10] White must now prevent ...Qe2+.} 51. f4 {[%emt 0:00:32]} Qe2+ {[%emt 0:00:58]} 52. Kh3 {[%emt 0:01:32]} Bf6 {[%emt 0:00:33]} 53. Qb1 {[%emt 0:00:42]} Bd4 {[%emt 0:09:04]} 54. Qc1 {[%emt 0:00:46]} Kf6 {[%emt 0:03:47]} 55. Qb1 {[%emt 0:01:37]} h5 {[%emt 0:00:34]} 56. Qh1 {[%emt 0:00:25]} Bf2 {[%emt 0:04:09]} 57. Qa1+ {[%emt 0:01:13]} Kf7 {[%emt 0:00:25]} 58. Qc3 {[%emt 0:00:15] Inhibits Qf3.} Bb6 {[%emt 0:01:58] ( -> ...Qf1+)} 59. Qc1 {[%emt 0:00:43] Inhibits Qf1+.} Qg4+ {[%emt 0:03:32]} 60. Kh2 {[%emt 0:00:10]} h4 {[%emt 0:00:06]} 61. gxh4 {[%emt 0:00:26]} Qxh4+ {[%emt 0:00:04]} 62. Kg2 {[%emt 0:00:06]} Qg4+ {[%emt 0:00:03]} 63. Kh2 {[%emt 0:00:46]} Qe2+ {[%emt 0:00:06]} 64. Kh1 {[%emt 0:00:28]} Qe3 {[%emt 0:00:26][%cal Re3h3]} 65. Qf1 {[%emt 0:00:40] Inhibits Qh3+.} Qxa3 {[%emt 0:00:56]} 66. Kg2 {[%emt 0:00:46]} Qxb4 {[%emt 0:01:22]} 67. Qd3 {[%emt 0:00:39]} Qc5 {[%emt 0:00:07]} 68. Qd7+ {[%emt 0:00:08]} Kf6 {[%emt 0:00:07] Weighted Error Value: White=0.72/Black=0.20 (precise)} 0-1

[Event "67th Mexican-ch Open 2022"]
[Site "Chihuahua"]
[Date "2022.04.16"]
[Round "6.3"]
[White "Quesada Perez, Luis Ernesto"]
[Black "Cordova, Emilio"]
[Result "1/2-1/2"]
[ECO "D17"]
[WhiteElo "2517"]
[BlackElo "2534"]
[Annotator "TA"]
[PlyCount "36"]
[EventDate "2022.04.12"]
[EventType "swiss"]
[EventCountry "MEX"]
[SourceTitle "playchess.com"]
[Source "ChessBase"]
[SourceQuality "1"]
[TimeControl "5400+30"]

{[%evp 32,36,0,0,0,0,0]} 1. d4 {[%emt 0:00:11]} d5 {[%emt 0:00:59]} 2. c4 {[%emt 0:00:14]} c6 {[%emt 0:00:07]} 3. Nc3 {[%emt 0:00:49]} Nf6 {[%emt 0:00:09]} 4. Nf3 {[%emt 0:00:12]} dxc4 {[%emt 0:02:14]} 5. a4 {[%emt 0:00:34]} Bf5 {[%emt 0:00:13]} 6. Ne5 {[%emt 0:03:37]} e6 {[%emt 0:02:26]} 7. f3 {[%emt 0:01:21]} Bb4 {[%emt 0:09:52]} 8. e4 {[%emt 0:07:56]} Bxe4 {[%emt 0:11:21]} 9. fxe4 {[%emt 0:00:15]} Nxe4 {[%emt 0:00:07]} 10. Qf3 {[%emt 0:27:10]} Qxd4 {[%emt 0:08:51]} 11. Qxf7+ {[%emt 0:00:26]} Kd8 {[%emt 0:00:05]} 12. Bg5+ {[%emt 0:04:12]} Nxg5 {[%emt 0:00:29]} 13. Qxg7 {[%emt 0:00:10]} Bxc3+ {[%emt 0:00:06]} 14. bxc3 {[%emt 0:00:09]} Qxc3+ {[%emt 0:00:05]} 15. Ke2 {[%emt 0:03:21]} Qc2+ {[%emt 0:02:24]} 16. Ke1 {[%emt 0:00:32]} Qc3+ {[%emt 0:02:54]} 17. Ke2 {[%emt 0:00:16] [#] White threatens Rd1+ and mate.} Qc2+ $146 {[%emt 0:00:06] D17: Slav Defence: 5 a4 Bf5: Lines with 6 Nh4 and 6 Ne5.} ({Much less strong is} 17... Qxa1 18. Nxc6+ (18. Qxh8+ Kc7 $11) 18... Nxc6 19. Qxa1 $16) ({Predecessor:} 17... Qb2+ 18. Ke3 Qxa1 19. Qxh8+ Kc7 20. Qg7+ Kc8 21. Qf8+ Kc7 22. Qe7+ Kc8 23. Qe8+ Kc7 24. Qe7+ {½-½ (26) Dietmayer Kraeutler,M (2276)-Diermair,A (2361) St Veit 2009}) 18. Ke1 {[%emt 0:00:10] Chess con chili.} Qc3+ {[%emt 0:00:06] An interesting draw.} 1/2-1/2

[Event "67th Mexican-ch Open 2022"]
[Site "Chihuahua"]
[Date "2022.04.16"]
[Round "6.4"]
[White "Perez Gormaz, Matias"]
[Black "Obregon Rivero, Juan Carlos"]
[Result "0-1"]
[ECO "B22"]
[WhiteElo "2404"]
[BlackElo "2536"]
[Annotator "TA"]
[PlyCount "42"]
[EventDate "2022.04.12"]
[EventType "swiss"]
[EventCountry "MEX"]
[SourceTitle "playchess.com"]
[Source "ChessBase"]
[SourceQuality "1"]
[TimeControl "5400+30"]

{[%evp 11,42,11,41,18,55,41,45,10,28,24,39,33,31,0,22,0,0,0,10,0,0,0,0,0,187,183,179,-275,0,-148,-141,-29996,-101]} 1. e4 {[%emt 0:00:00]} d5 2. exd5 {[%emt 0:00:00]} Qxd5 3. Nf3 {[%emt 0:00:00]} Nf6 {[%emt 0:07:07]} 4. c3 {[%emt 0:00:22]} c5 {[%emt 1:25:23]} 5. d4 Nc6 {[%emt 0:00:00]} 6. dxc5 {[%emt 0:01:37]} Qxc5 {[%emt 0:00:00]} 7. Na3 {[%emt 0:00:33][%cal Bb1a3,Ba3b5,Bb5d4][%mdl 32] B22: Sicilian: 2 c3.} e6 {[%emt 0:00:00]} 8. Nb5 {[%emt 0:04:19]} Qe7 {[%emt 0:00:00] [#] Against Nc7+} 9. Bg5 $146 {[%emt 0:27:06] White is slightly better.} (9. Qa4 $5 {[%cal Rc1f4]} Nd5 10. Bf4 Nxf4 11. Qxf4 $14) ({Predecessor:} 9. b3 a6 10. Ba3 Qd8 11. Nd6+ Bxd6 12. Qxd6 Qxd6 13. Bxd6 Ne4 14. Ba3 Nxc3 15. Bb2 {½-½ (45) Kharlov,A (2545)-Tolnai,T (2490) Budapest 1992}) 9... a6 {[%emt 0:00:00]} 10. Qa4 {[%emt 0:01:51] And now 0-0-0 would win.} Rb8 $1 {[%emt 0:00:00]} 11. Nbd4 {[%emt 0:18:21][%cal Of1a6] Black must now prevent Bxa6!} Bd7 {[%emt 0:00:00]} 12. O-O-O {[%emt 0:00:17]} Rc8 {[%emt 0:00:00]} (12... h6 $5 {[%cal Rh6g5]} 13. Bh4 Rc8 $11) 13. Nxc6 {[%emt 0:18:37]} Bxc6 {[%emt 0:00:00]} 14. Qh4 {[%emt 0:00:08]} h6 {[%emt 0:00:00][%cal Oh6g5]} 15. Ne5 {[%emt 0:01:00]} hxg5 {[%emt 0:00:00]} 16. Qxh8 {[%emt 0:00:14]} Ne4 {[%emt 0:00:00][%cal Oe4c3] Strongly threatening ...Nxc3!} 17. Bd3 {[%emt 0:05:59]} Nxf2 $2 {[%emt 0:00:00]} (17... Nxc3 $1 $11 18. bxc3 Qc5) 18. Rhf1 $18 {[%emt 0:00:57]} (18. Nxc6 Rxc6 19. Qh5 Rd6 $17) 18... Qc5 {[%emt 0:00:00] [#]} (18... Nxd1 $2 19. Rxf7 Qxf7 20. Nxf7 Kxf7 21. Qh5+ Kf6 22. Qg6+ (22. Qxd1 Bxg2 23. Qh5 Bd5 $18) 22... Ke7 23. Qxg5+ Kd6 24. Kxd1 $18) 19. Bg6 $4 {[%emt 0:06:40][%mdl 8192]} fxg6 {[%emt 0:00:00]} (19... Nxd1 $2 20. Rxf7 $1 Kd8 21. Rxf8+ Qxf8 22. Qxf8+ $18) (19... Qe3+ $1 $19 20. Kb1 (20. Rd2 $2 Be4 $19) 20... Be4+ 21. Bxe4 Nxd1) 20. Nxg6 {[%emt 0:00:05] [#]} (20. Qg8 Nxd1 21. Qf7+ Kd8 22. Qxf8+ (22. Rxd1+ Bd6 $17) 22... Qxf8 23. Rxf8+ Kc7 24. Rxc8+ Kxc8 $15) (20. Rd2 $11 {remains equal.} Ne4 21. Rd3 $1) 20... Be4 $1 $17 {[%emt 0:00:00] ( -> ...Qe3+)} ({Much less strong is} 20... Bxg2 21. Nxf8 (21. Qg8 Qe3+ 22. Rd2 Rxc3+ 23. bxc3 Qxc3+ 24. Rc2 Qa1+ 25. Kd2 Qd4+ 26. Kc1 Qa1+ 27. Kd2 Qd4+ 28. Kc1 Qa1+ $11) 21... Qe3+ 22. Kb1 Be4+ 23. Ka1 Nxd1 24. Nxe6+ (24. Rxd1 Kf7 $11) 24... Kd7 25. Qxg7+ (25. Rxd1+ Bd3 $14) 25... Kc6 26. Rxd1 $16) 21. Nxf8 $4 {[%emt 0:05:48][%mdl 8192]} (21. Qxf8+ $17 Qxf8 22. Nxf8 Nxd1 23. Nxe6 Nxc3 24. bxc3) 21... Qe3+ {[%emt 0:00:00] Weighted Error Value: White=0.79/Black=0.39} 0-1